fUST/lending_fUST_20241205
["ID","MTS","AMOUNT","RATE_DAILY","PERIOD"]
[344371859,1733385032854,-500.0,0.00021917,2]
[344371860,1733385032863,-500.0,0.00021917,2]
[344371861,1733385032872,-500.0,0.00021917,2]
[344371862,1733385032882,-542.71,0.00021917,2]
[344371863,1733385032891,-500.0,0.00021917,2]
[344371864,1733385032900,-500.0,0.00021917,2]
[344371865,1733385032910,-576.6,0.00021917,2]
[344371866,1733385032919,-500.0,0.00021917,2]
[344371867,1733385032928,-500.0,0.00021917,2]
[344371868,1733385032937,-500.0,0.00021917,2]
[344371869,1733385032946,-500.0,0.00021917,2]
[344371870,1733385032956,-500.0,0.00021917,2]
[344371871,1733385032965,-500.0,0.00021917,2]
[344371872,1733385032974,-349.03789599,0.00021917,2]
[344371873,1733385032984,-500.0,0.00021917,2]
[344371874,1733385033006,-500.0,0.00021917,2]
[344371875,1733385033016,-733.49,0.00021917,2]
[344371876,1733385033026,-500.0,0.00021917,2]
[344371877,1733385033035,-3565.24,0.00021917,2]
[344371878,1733385033047,-3843.3,0.00021917,2]
[344371879,1733385033057,-217.60459923,0.00021973,2]
[344371880,1733385033067,-632.75402473,0.00021973,2]
[344371881,1733385033077,-232.88,0.00021983,3]
[344371882,1733385033087,-163.87832118,0.00021993,2]
[344371883,1733385033097,-500.0,0.00021993,2]
[344371884,1733385033108,-501.15188269,0.00021993,2]
[344371885,1733385033118,-500.0,0.00021993,2]
[344371886,1733385033128,-500.0,0.00021993,2]
[344371887,1733385033138,-500.0,0.00021993,2]
[344371888,1733385033147,-500.0,0.00021993,2]
[344371889,1733385033157,-500.0,0.00021993,2]
[344371890,1733385033167,-500.0,0.00021993,2]
[344371891,1733385033177,-500.0,0.00021993,2]
[344371892,1733385033187,-500.0,0.00021993,2]
[344371893,1733385033197,-500.0,0.00021993,2]
[344371894,1733385033207,-500.0,0.00021993,2]
[344371895,1733385033216,-500.0,0.00021993,2]
[344371896,1733385033226,-500.0,0.00021993,2]
[344371897,1733385033236,-500.0,0.00021993,2]
[344371898,1733385033245,-500.0,0.00021993,2]
[344371899,1733385033255,-500.0,0.00021993,2]
[344371900,1733385033264,-500.0,0.00021993,2]
[344371901,1733385033274,-650.5361395,0.00021993,2]
[344371902,1733385033284,-500.0,0.00021993,2]
[344371903,1733385033295,-500.0,0.00021993,2]
[344371904,1733385033305,-331.5077871,0.00021993,2]
[344371905,1733385033315,-500.0,0.00021993,2]
[344371906,1733385033324,-500.0,0.00021993,2]
[344371907,1733385033334,-500.0,0.00021993,2]
[344371908,1733385033344,-500.0,0.00021993,2]
[344371909,1733385033354,-500.0,0.00021993,2]
[344371910,1733385033364,-216.96102027,0.00021993,2]
[344371911,1733385033374,-500.0,0.00021993,2]
[344371912,1733385033384,-500.0,0.00021993,2]
[344371913,1733385033393,-500.0,0.00021993,2]
[344371914,1733385033403,-500.0,0.00021993,2]
[344371915,1733385033413,-500.0,0.00021993,2]
[344371916,1733385033423,-500.0,0.00021993,2]
[344371917,1733385033432,-500.0,0.00021993,2]
[344371918,1733385033442,-500.0,0.00021993,2]
[344371919,1733385033451,-500.0,0.00021993,2]
[344371920,1733385033461,-500.0,0.00021993,2]
[344371921,1733385033470,-368.74648623,0.00021993,2]
[344371922,1733385033480,-500.0,0.00021993,2]
[344371923,1733385033489,-500.0,0.00021993,2]
[344371924,1733385033500,-500.0,0.00021993,2]
[344371925,1733385033513,-500.0,0.00021993,2]
[344371926,1733385033522,-500.0,0.00021993,2]
[344371927,1733385033532,-500.0,0.00021993,2]
[344371928,1733385033544,-500.0,0.00021993,2]
[344371929,1733385033554,-500.0,0.00021993,2]
[344371930,1733385033563,-500.0,0.00021993,2]
[344371931,1733385033573,-500.0,0.00021993,2]
[344371932,1733385033582,-500.0,0.00021993,2]
[344371933,1733385033592,-500.0,0.00021993,2]
[344371934,1733385033601,-500.0,0.00021993,2]
[344371935,1733385033611,-500.0,0.00021993,2]
[344371936,1733385033620,-500.0,0.00021993,2]
[344371937,1733385033630,-500.0,0.00021993,2]
[344371938,1733385033643,-500.0,0.00021993,2]
[344371939,1733385033653,-619.69833702,0.00021993,2]
[344371940,1733385033663,-500.0,0.00021993,2]
[344371941,1733385033673,-500.0,0.00021993,2]
[344371942,1733385033685,-500.0,0.00021993,2]
[344371943,1733385033695,-500.0,0.00021993,2]
[344371944,1733385033705,-500.0,0.00021993,2]
[344371945,1733385033836,-500.0,0.00021993,2]
[344371946,1733385033847,-500.0,0.00021993,2]
[344371947,1733385033858,-500.0,0.00021993,2]
[344371948,1733385033868,-500.0,0.00021993,2]
[344371949,1733385033878,-500.0,0.00021993,2]
[344371950,1733385033889,-500.0,0.00021993,2]
[344371951,1733385033899,-500.0,0.00021993,2]
[344371952,1733385033910,-500.0,0.00021993,2]
[344371953,1733385033920,-500.0,0.00021993,2]
[344371954,1733385033930,-500.0,0.00021993,2]
[344371955,1733385033940,-500.0,0.00021993,2]
[344371956,1733385033950,-500.0,0.00021993,2]
[344371957,1733385033960,-500.0,0.00021993,2]
[344371958,1733385033970,-500.0,0.00021993,2]
[344371959,1733385033980,-500.0,0.00021993,2]
[344371960,1733385033990,-500.0,0.00021993,2]
[344371961,1733385033999,-500.0,0.00021993,2]
[344371962,1733385034009,-500.0,0.00021993,2]
[344371963,1733385034019,-500.0,0.00021993,2]
[344371964,1733385034029,-500.0,0.00021993,2]
[344371965,1733385034039,-500.0,0.00021993,2]
[344371966,1733385034049,-500.0,0.00021993,2]
[344371967,1733385034059,-500.0,0.00021993,2]
[344371968,1733385034068,-500.0,0.00021993,2]
[344371969,1733385034078,-500.0,0.00021993,2]
[344371970,1733385034088,-500.0,0.00021993,2]
[344371971,1733385034098,-500.0,0.00021993,2]
[344371972,1733385034108,-500.0,0.00021993,2]
[344371973,1733385034118,-500.0,0.00021993,2]
[344371974,1733385034127,-500.0,0.00021993,2]
[344371975,1733385034137,-500.0,0.00021993,2]
[344371976,1733385034146,-500.0,0.00021993,2]
[344371977,1733385034156,-500.0,0.00021993,2]
[344371978,1733385034165,-500.0,0.00021993,2]
[344371979,1733385034175,-500.0,0.00021993,2]
[344371980,1733385034184,-500.0,0.00021993,2]
[344371981,1733385034193,-500.0,0.00021993,2]
[344371982,1733385034203,-448.57853361,0.00021993,2]
[344371983,1733385034212,-500.0,0.00021993,2]
[344371984,1733385034222,-500.0,0.00021993,2]
[344371985,1733385034231,-467.23038446,0.00021999,2]
[344371986,1733385034240,-504.97740659,0.00021999,2]
[344371987,1733385034250,-500.0,0.00021999,2]
[344371988,1733385034260,-197551.09734111,0.00022,2]
[344371989,1733385034275,-1024.6,0.00022,2]
[344372002,1733385038606,-500.0,0.00021917,2]
[344372003,1733385038616,-23351.30496983,0.00022,2]
[344372004,1733385038625,-157.0,0.00022,2]
[344372005,1733385038635,-500.0,0.00022191,2]
[344372006,1733385038646,-500.0,0.00022191,2]
[344372007,1733385038657,-321.40373444,0.00022191,2]
[344372008,1733385038666,-500.0,0.00022191,2]
[344372009,1733385038675,-500.0,0.00022191,2]
[344372010,1733385038686,-500.0,0.00022191,2]
[344372011,1733385038695,-500.0,0.00022191,2]
[344372012,1733385038705,-500.0,0.00022191,2]
[344372013,1733385038714,-515.87,0.00022191,2]
[344372014,1733385038724,-500.0,0.00022191,2]
[344372015,1733385038733,-500.0,0.00022191,2]
[344372016,1733385038743,-500.0,0.00022191,2]
[344372017,1733385038753,-500.0,0.00022191,2]
[344372018,1733385038763,-500.0,0.00022191,2]
[344372019,1733385038772,-500.0,0.00022191,2]
[344372020,1733385038782,-542.71,0.00022191,2]
[344372021,1733385038791,-500.0,0.00022191,2]
[344372022,1733385038802,-500.0,0.00022191,2]
[344372023,1733385038812,-576.6,0.00022191,2]
[344372024,1733385038821,-500.0,0.00022191,2]
[344372025,1733385038830,-500.0,0.00022191,2]
[344372026,1733385038840,-500.0,0.00022191,2]
[344372027,1733385038850,-500.0,0.00022191,2]
[344372028,1733385038859,-500.0,0.00022191,2]
[344372029,1733385038868,-500.0,0.00022191,2]
[344372030,1733385038877,-500.0,0.00022191,2]
[344372031,1733385038887,-500.0,0.00022191,2]
[344372032,1733385038896,-733.49,0.00022191,2]
[344372033,1733385038905,-500.0,0.00022191,2]
[344372034,1733385038914,-3565.24,0.00022191,2]
[344372035,1733385038923,-3843.3,0.00022191,2]
[344372036,1733385038932,-500.0,0.00022191,2]
[344372037,1733385038942,-500.0,0.00022465,2]
[344372038,1733385038951,-500.0,0.00022465,2]
[344372039,1733385038960,-479.99038191,0.00022465,2]
[344372040,1733385038969,-500.0,0.00022465,2]
[344372041,1733385038979,-344.14807397,0.00022465,2]
[344372042,1733385038988,-500.0,0.00022465,2]
[344372043,1733385038998,-500.0,0.00022465,2]
[344372044,1733385039008,-515.87,0.00022465,2]
[344372045,1733385039017,-342.18744997,0.00022465,2]
[344372046,1733385039026,-500.0,0.00022465,2]
[344372047,1733385039036,-500.0,0.00022465,2]
[344372048,1733385039048,-500.0,0.00022465,2]
[344372049,1733385039057,-500.0,0.00022465,2]
[344372050,1733385039067,-500.0,0.00022465,2]
[344372051,1733385039076,-542.71,0.00022465,2]
[344372052,1733385039085,-357.96588061,0.00022465,2]
[344372053,1733385039094,-550.98911694,0.00022465,2]
[344372054,1733385039106,-59.0390451,0.00022465,2]
[344372055,1733385039115,-440.73662306,0.00022465,2]
[344372056,1733385039126,-135.86337694,0.00022465,2]
[344372057,1733385039135,-500.0,0.00022465,2]
[344372058,1733385039144,-192.13662304,0.00022465,2]
[344372065,1733385040480,-307.86337696,0.00022465,2]
[344372066,1733385040490,-593.11788687,0.00022465,2]
[344372067,1733385040500,-500.0,0.00022465,2]
[344372068,1733385040509,-500.0,0.00022465,2]
[344372069,1733385040519,-500.0,0.00022465,2]
[344372070,1733385040529,-500.0,0.00022465,2]
[344372071,1733385040538,-500.0,0.00022465,2]
[344372072,1733385040551,-733.49,0.00022465,2]
[344372073,1733385040560,-217.05674469,0.00022465,2]
[344372074,1733385040569,-3565.24,0.00022465,2]
[344372075,1733385040579,-3843.3,0.00022465,2]
[344372076,1733385040588,-500.0,0.00022465,2]
[344372077,1733385040598,-500.0,0.00022584,2]
[344372078,1733385040608,-1048.66303249,0.00022708,2]
[344372079,1733385040618,-500.0,0.00022739,2]
[344372080,1733385040628,-613.6118393,0.00022739,2]
[344372081,1733385040638,-500.0,0.00022739,2]
[344372082,1733385040649,-500.0,0.00022739,2]
[344372083,1733385040659,-500.0,0.00022739,2]
[344372084,1733385040668,-515.87,0.00022739,2]
[344372085,1733385040677,-500.0,0.00022739,2]
[344372086,1733385040688,-500.0,0.00022739,2]
[344372087,1733385040699,-500.0,0.00022739,2]
[344372088,1733385040708,-151.94932952,0.00022739,2]
[344372089,1733385040718,-500.0,0.00022739,2]
[344372090,1733385040729,-542.71,0.00022739,2]
[344372091,1733385040739,-576.6,0.00022739,2]
[344372092,1733385040748,-248.27899788,0.00022739,2]
[344372093,1733385040758,-335.85183092,0.00022739,2]
[344372094,1733385040767,-500.0,0.00022739,2]
[344372095,1733385040776,-500.0,0.00022739,2]
[344372096,1733385040785,-500.0,0.00022739,2]
[344372097,1733385040795,-500.0,0.00022739,2]
[344372098,1733385040804,-500.0,0.00022739,2]
[344372099,1733385040814,-733.49,0.00022739,2]
[344372100,1733385040823,-3565.24,0.00022739,2]
[344372101,1733385040833,-3843.3,0.00022739,2]
[344372102,1733385040844,-500.0,0.00022739,2]
[344372103,1733385040853,-500.0,0.00023013,2]
[344372104,1733385040863,-500.0,0.00023013,2]
[344372105,1733385040872,-500.0,0.00023013,2]
[344372106,1733385040881,-500.0,0.00023013,2]
[344372107,1733385040891,-515.87,0.00023013,2]
[344372108,1733385040900,-500.0,0.00023013,2]
[344372109,1733385040909,-495.34070158,0.00023013,2]
[344372110,1733385040919,-500.0,0.00023013,2]
[344372111,1733385040928,-500.0,0.00023013,2]
[344372112,1733385040938,-542.71,0.00023013,2]
[344372113,1733385040947,-576.6,0.00023013,2]
[344372114,1733385040957,-500.0,0.00023013,2]
[344372115,1733385040966,-500.0,0.00023013,2]
[344372116,1733385040976,-500.0,0.00023013,2]
[344372117,1733385040986,-500.0,0.00023013,2]
[344372118,1733385040996,-500.0,0.00023013,2]
[344372119,1733385041006,-733.49,0.00023013,2]
[344372120,1733385041015,-3565.24,0.00023013,2]
[344372121,1733385041024,-3843.3,0.00023013,2]
[344372122,1733385041034,-500.0,0.00023013,2]
[344372123,1733385041045,-157.0,0.00023014,2]
[344372124,1733385041054,-500.0,0.00023287,2]
[344372125,1733385041064,-500.0,0.00023287,2]
[344372126,1733385041073,-422.78545896,0.00023287,2]
[344372127,1733385041082,-395.15120775,0.00023287,2]
[344372128,1733385041091,-515.87,0.00023287,2]
[344372129,1733385041101,-500.0,0.00023287,2]
[344372130,1733385041111,-500.0,0.00023287,2]
[344372131,1733385041120,-500.0,0.00023287,2]
[344372132,1733385041129,-542.71,0.00023287,2]
[344372133,1733385041139,-576.6,0.00023287,2]
[344372134,1733385041148,-500.0,0.00023287,2]
[344372135,1733385041158,-500.0,0.00023287,2]
[344372136,1733385041167,-500.0,0.00023287,2]
[344372137,1733385041176,-500.0,0.00023287,2]
[344372138,1733385041186,-500.0,0.00023287,2]
[344372139,1733385041195,-733.49,0.00023287,2]
[344372140,1733385041282,-3565.24,0.00023287,2]
[344372141,1733385041292,-3843.3,0.00023287,2]
[344372142,1733385041304,-500.0,0.00023287,2]
[344372143,1733385041314,-500.0,0.00023561,2]
[344372144,1733385041323,-500.0,0.00023561,2]
[344372145,1733385041334,-515.87,0.00023561,2]
[344372146,1733385041344,-500.0,0.00023561,2]
[344372147,1733385041354,-500.0,0.00023561,2]
[344372148,1733385041364,-500.0,0.00023561,2]
[344372149,1733385041373,-542.71,0.00023561,2]
[344372150,1733385041383,-576.6,0.00023561,2]
[344372151,1733385041392,-500.0,0.00023561,2]
[344372152,1733385041402,-500.0,0.00023561,2]
[344372153,1733385041411,-580.16865906,0.00023561,2]
[344372154,1733385041420,-500.0,0.00023561,2]
[344372155,1733385041430,-500.0,0.00023561,2]
[344372156,1733385041439,-733.49,0.00023561,2]
[344372157,1733385041448,-3565.24,0.00023561,2]
[344372158,1733385041458,-3843.3,0.00023561,2]
[344372159,1733385041467,-500.0,0.00023561,2]
[344372160,1733385041476,-180.0,0.00023562,2]
[344372161,1733385041485,-587.0,0.00023584,2]
[344372162,1733385041494,-500.0,0.0002372,2]
[344372163,1733385041503,-500.0,0.00023772,2]
[344372164,1733385041513,-500.0,0.00023835,2]
[344372165,1733385041522,-500.0,0.00023835,2]
[344372166,1733385041532,-515.87,0.00023835,2]
[344372167,1733385041541,-500.0,0.00023835,2]
[344372168,1733385041552,-264.74910259,0.00023835,2]
[344372169,1733385041562,-500.0,0.00023835,2]
[344372170,1733385041571,-542.71,0.00023835,2]
[344372171,1733385041581,-576.6,0.00023835,2]
[344372172,1733385041592,-500.0,0.00023835,2]
[344372173,1733385041602,-500.0,0.00023835,2]
[344372174,1733385041611,-500.0,0.00023835,2]
[344372175,1733385041620,-500.0,0.00023835,2]
[344372176,1733385041630,-733.49,0.00023835,2]
[344372177,1733385041640,-3565.24,0.00023835,2]
[344372178,1733385041652,-3843.3,0.00023835,2]
[344372179,1733385041662,-500.0,0.00023835,2]
[344372180,1733385041672,-1048.66303249,0.00024062,2]
[344372181,1733385041682,-587.0,0.00024062,2]
[344372182,1733385041693,-155.06959356,0.00024097,2]
[344372183,1733385041703,-500.0,0.00024109,2]
[344372184,1733385041713,-386.72406229,0.00024109,2]
[344372185,1733385041724,-515.87,0.00024109,2]
[344372186,1733385041734,-500.0,0.00024109,2]
[344372187,1733385041744,-500.0,0.00024109,2]
[344372188,1733385041753,-542.71,0.00024109,2]
[344372189,1733385041764,-576.6,0.00024109,2]
[344372190,1733385041774,-500.0,0.00024109,2]
[344372191,1733385041783,-500.0,0.00024109,2]
[344372192,1733385041793,-500.0,0.00024109,2]
[344372193,1733385041807,-500.0,0.00024109,2]
[344372194,1733385041822,-733.49,0.00024109,2]
[344372195,1733385041832,-3565.24,0.00024109,2]
[344372196,1733385041841,-3843.3,0.00024109,2]
[344372197,1733385041850,-500.0,0.00024109,2]
[344372198,1733385041860,-1000.0,0.00024268,2]
[344372199,1733385041870,-1395.38615589,0.00024373,2]
[344372200,1733385041879,-500.0,0.00024383,2]
[344372201,1733385041888,-515.87,0.00024383,2]
[344372202,1733385041897,-500.0,0.00024383,2]
[344372203,1733385041908,-500.0,0.00024383,2]
[344372204,1733385041917,-542.71,0.00024383,2]
[344372205,1733385041926,-576.6,0.00024383,2]
[344372206,1733385041936,-500.0,0.00024383,2]
[344372207,1733385041945,-500.0,0.00024383,2]
[344372208,1733385041955,-500.0,0.00024383,2]
[344372209,1733385041964,-183.65765701,0.00024383,2]
[344372210,1733385041973,-733.49,0.00024383,2]
[344372211,1733385041983,-3565.24,0.00024383,2]
[344372212,1733385041993,-3843.3,0.00024383,2]
[344372213,1733385042002,-500.0,0.00024383,2]
[344372214,1733385042011,-395.265,0.00024433,7]
[344372215,1733385042021,-170.69345027,0.00024433,7]
[344372216,1733385042030,-11577.22722009,0.00024444,8]
[344372217,1733385042043,-634.56425145,0.00024444,8]
[344372218,1733385042058,-15957.97470509,0.00024444,8]
[344372219,1733385042080,-309.3323983,0.00024444,8]
[344372220,1733385042092,-495.1144016,0.00024444,8]
[344372221,1733385042103,-823.2107342,0.00024444,8]
[344372222,1733385042115,-471.8561426,0.00024444,8]
[344372223,1733385042126,-351.432246,0.00024444,8]
[344372224,1733385042143,-366.0670543,0.00024444,8]
[344372234,1733385043673,-4295.27910266,0.00024444,8]
[344372235,1733385043686,-1478.26050514,0.00024444,8]
[344372253,1733385046448,-295.80174965,0.00024444,8]
[344372254,1733385046523,-7729.39999991,0.00024444,8]
[344372255,1733385046590,-23549.37739421,0.00024444,8]
[344372256,1733385293908,158.081636,0.00013973,2]
[344372262,1733385892629,164.949643,0.00013973,2]
[344372320,1733386235132,-290.43964264,0.00019497,2]
[344372321,1733386235142,-162.97286763,0.00019597,2]
[344372322,1733386235152,-195.42615953,0.00019697,2]
[344372323,1733386235162,-1675.41705784,0.00019697,2]
[344372324,1733386235171,-162.400386,0.00020415,2]
[344372325,1733386235182,-158.081636,0.00020447,2]
[344372326,1733386235191,-1161.98153728,0.00020756,2]
[344372338,1733386238701,-4456.86107514,0.00020756,2]
[344372339,1733386238808,-19281.15738758,0.00020756,2]
[344372340,1733386238817,-300.0,0.00021447,2]
[344372341,1733386238826,-300.0,0.00021447,2]
[344372342,1733386238835,-655.41439535,0.00021817,2]
[344372343,1733386238844,-500.0,0.00021917,2]
[344372344,1733386238854,-290.38194725,0.00021917,2]
[344372345,1733386238863,-500.0,0.00021917,2]
[344372346,1733386238873,-500.0,0.00021917,2]
[344372347,1733386238882,-500.0,0.00021917,2]
[344372348,1733386238891,-500.0,0.00021917,2]
[344372349,1733386238900,-500.0,0.00021917,2]
[344372350,1733386238910,-500.0,0.00021917,2]
[344372351,1733386238920,-500.0,0.00021917,2]
[344372352,1733386238929,-2079.72,0.00021917,2]
[344372353,1733386238939,-638.03912207,0.00021917,2]
[344372354,1733386238951,-26.39087793,0.00021917,2]
[344372355,1733386238960,-2241.92,0.00021917,2]
[344372356,1733386238969,-500.0,0.00021917,2]
[344372357,1733386238979,-507.57903863,0.00022191,2]
[344372358,1733386238988,-500.0,0.00022191,2]
[344372359,1733386238998,-500.0,0.00022191,2]
[344372360,1733386239009,-500.0,0.00022191,2]
[344372361,1733386239020,-500.0,0.00022191,2]
[344372362,1733386239029,-500.0,0.00022191,2]
[344372363,1733386239039,-500.0,0.00022191,2]
[344372364,1733386239048,-500.0,0.00022191,2]
[344372365,1733386239058,-2079.72,0.00022191,2]
[344372366,1733386239067,-664.43,0.00022191,2]
[344372367,1733386239076,-2241.92,0.00022191,2]
[344372368,1733386239087,-500.0,0.00022191,2]
[344372369,1733386239096,-191.84715226,0.00022365,2]
[344372370,1733386239105,-500.0,0.00022465,2]
[344372371,1733386239115,-227.65916254,0.00022465,2]
[344372372,1733386239128,-626.31006173,0.00022465,2]
[344372373,1733386239138,-500.0,0.00022465,2]
[344372374,1733386239147,-500.0,0.00022465,2]
[344372375,1733386239156,-500.0,0.00022465,2]
[344372376,1733386239166,-500.0,0.00022465,2]
[344372377,1733386239175,-2079.72,0.00022465,2]
[344372378,1733386239184,-664.43,0.00022465,2]
[344372379,1733386239193,-2241.92,0.00022465,2]
[344372380,1733386239202,-500.0,0.00022465,2]
[344372381,1733386239211,-500.0,0.00022737,2]
[344372382,1733386239221,-500.0,0.00022737,2]
[344372383,1733386239230,-394.87816966,0.00022737,2]
[344372384,1733386239240,-500.0,0.00022737,2]
[344372385,1733386239249,-500.0,0.00022737,2]
[344372386,1733386239258,-500.0,0.00022737,2]
[344372387,1733386239267,-500.0,0.00022737,2]
[344372388,1733386239276,-500.0,0.00022737,2]
[344372389,1733386239285,-500.0,0.00022737,2]
[344372390,1733386239294,-500.0,0.00022737,2]
[344372391,1733386239305,-500.0,0.00022737,2]
[344372392,1733386239314,-500.0,0.00022737,2]
[344372393,1733386239322,-500.0,0.00022737,2]
[344372394,1733386239331,-500.0,0.00022737,2]
[344372395,1733386239340,-500.0,0.00022737,2]
[344372396,1733386239349,-294.5040155,0.00022737,2]
[344372397,1733386239359,-500.0,0.00022737,2]
[344372398,1733386239369,-500.0,0.00022737,2]
[344372399,1733386239378,-500.0,0.00022737,2]
[344372400,1733386239387,-500.0,0.00022737,2]
[344372401,1733386239396,-500.0,0.00022737,2]
[344372402,1733386239406,-500.0,0.00022737,2]
[344372403,1733386239415,-500.0,0.00022737,2]
[344372404,1733386239424,-500.0,0.00022737,2]
[344372405,1733386239433,-500.0,0.00022737,2]
[344372406,1733386239442,-500.0,0.00022737,2]
[344372407,1733386239452,-500.0,0.00022737,2]
[344372408,1733386239461,-500.0,0.00022737,2]
[344372409,1733386239470,-500.0,0.00022737,2]
[344372410,1733386239480,-500.0,0.00022737,2]
[344372411,1733386239489,-500.0,0.00022737,2]
[344372412,1733386239498,-261.31251838,0.00022737,2]
[344372413,1733386239508,-230.50676969,0.00022737,2]
[344372414,1733386239517,-500.0,0.00022737,2]
[344372415,1733386239526,-500.0,0.00022737,2]
[344372416,1733386239536,-500.0,0.00022737,2]
[344372417,1733386239545,-567.1249695,0.00022737,2]
[344372418,1733386239555,-500.0,0.00022737,2]
[344372419,1733386239564,-500.0,0.00022737,2]
[344372420,1733386239573,-500.0,0.00022737,2]
[344372421,1733386239583,-500.0,0.00022737,2]
[344372422,1733386239591,-500.0,0.00022737,2]
[344372423,1733386239601,-500.0,0.00022739,2]
[344372424,1733386239610,-500.0,0.00022739,2]
[344372425,1733386239619,-500.0,0.00022739,2]
[344372426,1733386239628,-500.0,0.00022739,2]
[344372427,1733386239638,-500.0,0.00022739,2]
[344372428,1733386239647,-2079.72,0.00022739,2]
[344372429,1733386239656,-664.43,0.00022739,2]
[344372430,1733386239665,-2241.92,0.00022739,2]
[344372431,1733386239675,-500.0,0.00022739,2]
[344372432,1733386239684,-357.30397628,0.00022973,2]
[344372433,1733386239693,-500.0,0.00023013,2]
[344372434,1733386239703,-500.0,0.00023013,2]
[344372435,1733386239712,-500.0,0.00023013,2]
[344372436,1733386239721,-401.68665117,0.00023013,2]
[344372437,1733386239730,-500.0,0.00023013,2]
[344372438,1733386239739,-2079.72,0.00023013,2]
[344372439,1733386239748,-664.43,0.00023013,2]
[344372440,1733386239757,-2241.92,0.00023013,2]
[344372441,1733386239766,-500.0,0.00023013,2]
[344372442,1733386239776,-655.4143953,0.00023101,2]
[344372443,1733386239785,-825.84,0.00023277,3]
[344372444,1733386239795,-500.0,0.00023287,2]
[344372445,1733386239805,-500.0,0.00023287,2]
[344372446,1733386239815,-500.0,0.00023287,2]
[344372447,1733386239824,-407.94274516,0.00023287,2]
[344372448,1733386239833,-2079.72,0.00023287,2]
[344372449,1733386239842,-664.43,0.00023287,2]
[344372450,1733386239851,-2241.92,0.00023287,2]
[344372451,1733386239861,-500.0,0.00023287,2]
[344372452,1733386239870,-420.0,0.00023319,2]
[344372453,1733386239881,-191.84715225,0.00023411,2]
[344372454,1733386239891,-272.224719,0.00023534,2]
[344372455,1733386239901,-425.1056507,0.00023534,2]
[344372456,1733386239996,-305.4941208,0.00023534,2]
[344372457,1733386240009,-305.4941208,0.00023534,2]
[344372458,1733386240019,-500.0,0.00023561,2]
[344372460,1733386240028,-500.0,0.00023561,2]
[344372461,1733386240038,-500.0,0.00023561,2]
[344372462,1733386240049,-2079.72,0.00023561,2]
[344372463,1733386240061,-664.43,0.00023561,2]
[344372464,1733386240070,-2241.92,0.00023561,2]
[344372465,1733386240082,-500.0,0.00023561,2]
[344372466,1733386240093,-180.0,0.00023562,2]
[344372468,1733386240103,-316.212,0.00023562,4]
[344372470,1733386240112,-420.0,0.00023592,2]
[344372471,1733386240121,-500.0,0.00023835,2]
[344372472,1733386240130,-500.0,0.00023835,2]
[344372473,1733386240140,-500.0,0.00023835,2]
[344372474,1733386240150,-2079.72,0.00023835,2]
[344372476,1733386240159,-664.43,0.00023835,2]
[344372478,1733386240168,-872.4383622,0.00023835,2]
[344372484,1733386240570,-386.1872948,0.00023835,2]
[344372485,1733386240581,-983.294343,0.00023835,2]